bitfinex/quotes_ETHUSD_20250222
["timestamp","ask_amount","ask_price","bid_price","bid_amount"]
[1740240821876,3.58924,2786.1,2786.0,0.04047736]
[1740240822385,3.5897,2785.8,2785.5,5.39]
[1740240822689,3.58946,2786.0,2785.5,5.39]
[1740240822886,3.58886,2786.4,2785.6,3.58976]
[1740240823195,3.58864,2786.6,2785.8,0.7735]
[1740240823501,3.0,2786.5,2786.0,3.58928]
[1740240823647,3.58841,2786.8,2786.2,3.58909]
[1740240823843,3.58841,2786.8,2786.3,3.58894]
[1740240824048,3.58814,2787.0,2786.5,3.58868]
[1740240824248,3.58836,2786.8,2786.0,5.39]
[1740240824448,0.439314,2786.9,2786.0,5.39]
[1740240824693,3.58881,2786.5,2786.0,5.39]
[1740240824873,7.027624,2786.9,2786.1,3.58923]
[1740240825275,0.805,2787.1,2786.4,0.8531]
[1740240825590,0.805,2787.1,2786.0,5.39]
[1740240825591,3.58891,2786.4,2786.1,0.8531]
[1740240825762,3.58891,2786.4,2786.1,6.2431]
[1740240826289,3.58911,2786.2,2786.1,5.39]
[1740240826856,6.58911,2786.2,2786.1,5.39]
[1740240827807,6.58911,2786.2,2786.1,5.43001259]
[1740240828505,3.58899,2786.3,2786.1,5.43001259]
[1740240828799,3.8161,2786.9,2786.1,5.43001259]
[1740240828967,3.58901,2786.3,2786.1,5.43001259]
[1740240829167,7.17811,2786.3,2786.1,5.43001259]
[1740240829572,3.58911,2786.2,2786.1,5.43001259]
[1740240830159,4.3661,2786.9,2786.1,5.43001259]
[1740240830407,3.58841,2786.8,2786.1,6.21501259]
[1740240830707,0.8161,2786.9,2786.3,3.58894]
[1740240830954,3.8161,2786.9,2786.3,3.58894]
[1740240831109,4.39,2787.2,2786.7,3.58839]
[1740240831403,3.58757,2787.4,2786.8,0.0464595]
[1740240831575,3.58822,2786.9,2786.8,0.0464595]
[1740240832106,3.58803,2787.1,2786.8,0.0464595]
[1740240832564,3.58816,2787.0,2786.8,0.0464595]
[1740240832761,3.58821,2786.9,2786.8,0.0464595]
[1740240832966,7.1761,2787.1,2786.8,0.0464595]
[1740240833200,3.58821,2787.0,2786.8,0.0464595]
[1740240833408,3.58815,2787.0,2786.8,0.0464595]
[1740240834111,3.58821,2786.9,2786.8,0.0464595]
[1740240834690,7.39031,2786.9,2786.8,0.0464595]
[1740240835023,3.0,2786.9,2786.8,0.0464595]
[1740240835408,3.58809,2787.0,2786.5,4.37366]
[1740240835721,3.0,2786.9,2786.5,4.37366]
[1740240835875,0.8021,2787.3,2786.7,3.58841]
[1740240836080,4.08449933,2787.2,2786.8,0.0464595]
[1740240836303,4.08449933,2787.2,2786.5,4.3737]
[1740240836514,3.58808,2787.1,2786.5,4.3737]
[1740240836721,3.58808,2787.1,2786.6,3.63525842]
[1740240837215,3.58824,2786.9,2786.6,0.04666842]
[1740240837418,3.58847,2786.7,2786.6,0.04666842]
[1740240837721,3.58847,2786.7,2786.3,5.39]
[1740240837918,0.358824,2786.9,2786.4,0.04687737]
[1740240838130,3.58873,2786.5,2786.4,0.04687737]
[1740240838496,7.75312326,2786.5,2786.4,0.04687737]
[1740240838810,3.58937,2786.0,2785.9,5.39]
[1740240838987,3.0,2786.3,2785.9,5.39]
[1740240839187,3.58892,2786.4,2785.9,5.39]
[1740240839521,0.8021,2786.9,2785.9,5.39]
[1740240839706,4.39039,2786.9,2786.3,3.58891]
[1740240839887,3.0,2786.7,2786.3,3.58891]
[1740240840087,4.082419,2786.8,2786.2,0.785]
[1740240840088,3.58865,2786.6,2786.2,0.785]
[1740240840282,0.8021,2786.9,2786.2,0.785]
[1740240840484,3.0,2786.8,2786.3,3.58887]
[1740240840699,3.58799,2787.1,2786.4,5.39]
[1740240840933,3.58809,2787.0,2786.5,3.58865]
[1740240841123,0.8021,2787.3,2786.5,7.17746]
[1740240841333,4.96649326,2788.2,2786.8,0.785]
[1740240841639,3.58808,2787.0,2786.9,5.39]
[1740240841786,3.58782,2787.3,2786.6,5.39]
[1740240841987,3.58738,2787.6,2786.6,5.39]
[1740240842265,0.8021,2787.8,2787.1,4.37288]
[1740240842476,3.58745,2787.5,2787.1,0.785]
[1740240842755,3.58768,2787.4,2787.2,0.04525871]
[1740240842960,3.58737,2787.6,2787.2,0.04525871]
[1740240843150,7.17477,2787.6,2787.2,0.04525871]
[1740240843325,3.58737,2787.6,2787.3,0.0526742]
[1740240843525,3.58755,2787.5,2787.1,5.22025871]
[1740240843727,3.58755,2787.5,2787.2,0.05280183]
[1740240844933,3.58702,2787.9,2787.2,0.05280183]
[1740240845255,3.58732,2787.6,2787.1,8.80813871]
[1740240845452,3.946052,2787.6,2787.1,8.80813871]
[1740240845770,3.58751,2787.5,2787.2,0.05280183]
[1740240846267,3.58761,2787.4,2787.2,0.05280183]
[1740240846561,11.30209326,2787.3,2787.2,0.05280183]
[1740240846769,3.58886,2786.4,2786.3,12.55325871]
[1740240847066,0.358886,2786.4,2785.8,5.22025871]
[1740240847223,3.58906,2786.3,2785.8,8.80987871]
[1740240847430,0.358886,2786.4,2785.8,5.22025871]
[1740240847763,3.58933,2786.1,2785.8,5.22025871]
[1740240847963,0.358886,2786.4,2785.8,8.80978871]
[1740240848139,3.58927,2786.1,2785.8,5.22025871]
[1740240848473,3.58913,2786.2,2785.8,5.22025871]
[1740240848668,0.358886,2786.4,2785.8,5.22025871]
[1740240848962,3.0,2786.5,2785.9,3.58948]
[1740240849127,3.0,2786.5,2786.0,5.22025871]
[1740240849474,4.95949326,2787.0,2786.2,4.43424]
[1740240849475,0.7951,2787.0,2786.2,4.43424]
[1740240849655,3.58895,2786.4,2786.0,5.22025871]
[1740240850585,4.38327,2787.0,2786.0,5.22025871]
[1740240850767,3.5886,2786.6,2786.1,3.58924]
[1740240851167,3.5886,2786.6,2786.1,7.17848]
[1740240851491,3.5886,2786.6,2786.1,3.58924]
[1740240851652,3.58873,2786.5,2786.0,5.22025871]
[1740240851851,3.5886,2786.6,2786.1,3.58922]
[1740240852067,3.5886,2786.6,2786.1,3.58917]
[1740240852443,0.8171,2787.3,2786.1,1.32037587]
[1740240852787,7.17602,2787.1,2786.5,4.39356]
[1740240852973,3.58798,2787.1,2786.5,7.98221]
[1740240853170,3.58798,2787.1,2786.6,3.58857]
[1740240853365,7.75173326,2787.6,2786.5,4.39355]
[1740240853366,4.16439326,2787.6,2786.5,0.8049]
[1740240853570,0.44633933,2787.5,2786.6,3.58847]
[1740240853764,3.5879,2787.2,2786.6,3.58847]
[1740240853967,3.5879,2787.2,2786.5,0.8049]
[1740240854143,3.58844,2786.8,2786.2,9.61426871]
[1740240854479,3.58822,2786.9,2786.2,9.61426871]
[1740240854651,0.55,2787.4,2786.2,6.02515871]
[1740240854853,3.58853,2786.7,2786.2,6.02515871]
[1740240855052,7.17711,2786.7,2786.2,6.02515871]
[1740240855253,3.58797,2787.1,2786.3,0.8049]
[1740240855459,3.58778,2787.3,2786.7,3.58847]
[1740240855877,3.58784,2787.2,2786.7,3.58847]
[1740240856061,3.58809,2787.0,2786.5,3.58871]
[1740240856269,3.58809,2787.0,2786.4,3.58885]
[1740240856468,3.58809,2787.0,2786.3,4.3938]
[1740240856786,3.58809,2787.0,2786.5,3.58873]
[1740240857153,3.58782,2787.3,2786.7,3.58846]
[1740240857355,0.8171,2787.6,2786.8,5.22025871]
[1740240857584,3.58815,2787.0,2786.8,5.22025871]
[1740240857894,3.58821,2786.9,2786.8,5.22025871]
[1740240858888,3.58806,2787.1,2786.8,5.22025871]
[1740240859483,3.58747,2787.5,2786.9,0.8049]
[1740240859690,7.615477,2787.5,2787.0,3.58801]
[1740240859900,3.58722,2787.7,2787.1,5.22025871]
[1740240860196,3.58697,2787.9,2787.3,3.58758]
[1740240860364,3.0,2787.9,2787.3,3.58758]
[1740240860697,0.8171,2788.3,2787.2,3.58775]
[1740240860698,3.58721,2787.7,2787.2,3.58775]
[1740240861348,3.58714,2787.8,2787.1,5.22025871]
[1740240861694,3.58747,2787.5,2787.1,5.22025871]
[1740240861863,3.58783,2787.2,2787.1,5.22025871]
[1740240862790,3.0,2787.3,2787.1,5.22025871]
[1740240863092,3.58783,2787.2,2787.1,5.22025871]
[1740240865391,3.58754,2787.5,2787.2,0.8298]
[1740240865691,3.58778,2787.3,2787.1,5.22025871]
[1740240865854,3.58783,2787.2,2787.1,5.22025871]
[1740240867959,7.17737,2786.6,2786.4,5.22025871]
[1740240868301,3.58868,2786.6,2786.4,5.22025871]
[1740240868884,3.58839,2786.8,2786.4,5.22025871]
[1740240869083,3.58822,2786.9,2786.4,5.22025871]
[1740240869297,3.58822,2786.9,2786.5,3.58872]
[1740240869888,3.0,2787.3,2786.4,5.22025871]
[1740240870071,0.827,2787.9,2787.1,0.7629]
[1740240870289,3.58772,2787.3,2786.8,0.7629]
[1740240870489,3.58807,2787.1,2786.8,0.7629]
[1740240870660,3.58807,2787.1,2786.6,14.12025871]
[1740240870661,3.946857,2787.1,2786.6,5.22025871]
[1740240870863,3.946857,2787.1,2786.3,5.22025871]
[1740240870864,4.71439326,2787.0,2786.3,5.22025871]
[1740240871089,3.58854,2786.7,2786.3,5.22025871]
[1740240871289,0.55,2787.0,2786.2,7.332]
[1740240871462,3.58898,2786.3,2786.2,7.332]
[1740240873695,3.58924,2786.1,2786.0,5.22025871]
[1740240874315,3.5889,2786.4,2786.0,5.22025871]
[1740240874621,0.827,2787.0,2786.1,0.7629]
[1740240874791,3.58867,2786.6,2786.1,5.98315871]
[1740240874991,3.58867,2786.6,2786.1,9.57239871]
[1740240875509,3.58876,2786.5,2786.1,5.98315871]
[1740240876042,0.827,2787.0,2786.1,5.98315871]
[1740240876212,3.58861,2786.6,2786.1,9.57238871]
[1740240876384,0.358861,2786.6,2786.1,5.22025871]
[1740240876579,3.58911,2786.2,2786.1,5.22025871]
[1740240876887,3.58911,2786.2,2785.9,5.22025871]
[1740240877219,0.827,2786.3,2785.6,5.22025871]
[1740240877422,3.58919,2786.2,2785.6,8.81004871]
[1740240877578,3.58951,2785.9,2785.6,5.22025871]
[1740240877985,3.58971,2785.8,2785.6,5.22025871]
[1740240878184,3.58976,2785.7,2785.6,5.22025871]
[1740240878394,3.59023,2785.4,2785.1,5.22025871]
[1740240878622,3.59028,2785.3,2785.1,5.22025871]
[1740240879324,3.59006,2785.5,2785.1,5.22025871]
[1740240879482,4.41697,2785.6,2785.1,8.81078871]
[1740240879832,0.827,2785.9,2785.4,3.59005]
[1740240880035,0.827,2785.9,2785.4,7.18007]
[1740240880207,6.58938,2786.0,2785.6,3.58988]
[1740240880208,3.0,2786.0,2785.6,3.58988]
[1740240880601,3.0,2786.1,2785.6,3.58988]
[1740240880800,3.58944,2786.0,2785.5,8.81023871]
[1740240881096,3.0,2786.1,2785.5,5.22025871]
[1740240881296,1.10098454,2786.5,2785.5,5.22025871]
[1740240881497,0.827,2786.5,2785.5,5.22025871]
[1740240881834,3.58912,2786.2,2785.6,3.5898]
[1740240882037,0.827,2786.5,2785.9,3.58943]
[1740240882193,3.0,2786.6,2786.1,3.58924]
[1740240882394,0.65885,2786.5,2786.3,3.58896]
[1740240882594,3.58848,2786.7,2786.2,3.58907]
[1740240882791,3.0,2786.6,2786.0,5.98315871]
[1740240883037,3.0,2786.6,2786.1,3.58923]
[1740240883508,3.58924,2786.1,2786.0,5.22025871]
[1740240883710,3.58924,2786.1,2785.0,5.22025871]
[1740240883711,3.59012,2785.5,2785.0,5.22025871]
[1740240883910,3.58985,2785.7,2785.1,3.59041]
[1740240884114,0.358985,2785.7,2785.0,5.22025871]
[1740240884302,3.59003,2785.5,2785.0,5.22025871]
[1740240884844,3.58979,2785.7,2785.1,3.59043]
[1740240884995,0.55,2785.9,2785.3,3.59027]
[1740240885196,3.58978,2785.7,2785.1,3.59043]
[1740240885436,3.58986,2785.7,2785.1,3.59043]
[1740240885744,3.58975,2785.8,2785.2,3.59033]
[1740240885745,3.58971,2785.8,2785.2,3.59033]
[1740240885905,7.593401,2785.8,2785.2,3.59033]
[1740240886531,3.58998,2785.6,2785.0,5.22025871]
[1740240886834,3.58998,2785.6,2785.1,3.5905]
[1740240887436,3.59002,2785.5,2785.0,8.81088871]
[1740240887634,3.58998,2785.6,2785.0,8.81088871]
[1740240888549,3.58998,2785.6,2785.1,3.59053]
[1740240888750,3.58977,2785.7,2785.2,3.59036]
[1740240888964,7.593381,2785.8,2785.2,3.5903]
[1740240889128,0.827,2786.1,2785.0,5.22025871]
[1740240889446,3.58925,2786.1,2785.4,3.59009]
[1740240889625,3.58945,2786.0,2785.5,3.59001]
[1740240890008,3.58925,2786.1,2785.5,3.58991]
[1740240890207,3.58925,2786.1,2785.6,3.58979]
[1740240890408,3.0,2786.2,2785.6,3.58979]
[1740240890647,0.26874149,2786.4,2785.7,3.58968]
[1740240890833,0.26874149,2786.4,2785.7,5.22025871]
[1740240891038,6.58907,2786.3,2785.7,5.22025871]
[1740240891240,6.58899,2786.3,2785.8,3.58956]
[1740240891445,3.58899,2786.3,2785.8,3.58956]
[1740240891640,0.29556664,2786.2,2786.1,3.58924]
[1740240891839,0.29556664,2786.2,2786.1,9.57339871]
[1740240894056,0.29556664,2786.2,2786.1,18.47339871]
[1740240894428,7.37631,2787.3,2786.7,3.5884]
[1740240895021,0.55,2787.6,2786.7,0.7639]
[1740240895022,1.06414717,2787.6,2786.7,0.7639]
[1740240895356,1.06414717,2787.6,2787.0,3.588]
[1740240895357,3.58744,2787.5,2787.0,3.588]
[1740240895517,4.025184,2787.4,2786.9,3.58821]
[1740240895955,0.437604,2787.4,2786.9,5.22025871]
[1740240896157,4.37668,2787.0,2786.9,5.22025871]
[1740240897355,4.92668,2787.0,2786.9,5.22025871]
[1740240897927,7.92668,2787.0,2786.9,5.22025871]
[1740240898136,8.51546776,2787.0,2786.9,5.22025871]
[1740240898941,8.51546776,2787.0,2786.3,8.9]
[1740240898942,3.58897,2786.4,2786.0,5.22025871]
[1740240899338,3.58906,2786.3,2786.0,5.22025871]
[1740240899560,3.58897,2786.4,2786.0,5.22025871]
[1740240899743,3.58894,2786.4,2786.0,5.22025871]
[1740240899937,3.58907,2786.3,2786.0,5.22025871]
[1740240900140,3.58915,2786.2,2786.0,5.22025871]
[1740240900723,4.026624,2786.3,2786.0,5.22025871]
[1740240900923,7.17791,2786.4,2786.0,5.22025871]
[1740240901125,3.58894,2786.4,2786.0,5.22025871]
[1740240901324,3.58911,2786.2,2786.0,5.22025871]
[1740240902062,3.58894,2786.4,2786.0,5.22025871]
[1740240902458,3.58899,2786.3,2786.0,5.22025871]
[1740240902645,3.58881,2786.5,2786.0,5.22025871]
[1740240902970,3.58894,2786.4,2786.0,5.22025871]
[1740240903174,3.55,2786.5,2786.0,5.22025871]
[1740240903337,3.58888,2786.4,2786.0,5.22025871]
[1740240904140,3.58901,2786.3,2786.0,5.22025871]
[1740240904662,3.859829,2787.0,2786.4,3.58875]
[1740240904973,0.4635329,2787.0,2786.6,3.58855]
[1740240905177,5.47886561,2787.3,2786.6,3.58855]
[1740240905178,1.89110561,2787.3,2786.9,3.58818]
[1740240905880,1.89110561,2787.3,2787.0,5.22025871]
[1740240906037,1.00440569,2787.3,2787.2,3.58783]
[1740240906380,1.00440569,2787.3,2787.1,4.41928]
[1740240906878,3.58663,2788.2,2787.2,5.22025871]
[1740240907078,3.58663,2788.2,2787.6,3.58724]
[1740240907252,3.58671,2788.1,2787.6,3.58724]
[1740240907650,3.0,2788.1,2787.6,3.58723]
[1740240908058,3.58609,2788.6,2787.7,0.8314]
[1740240908255,5.27160992,2788.8,2787.8,5.22025871]
[1740240908256,0.7991,2788.8,2787.8,5.22025871]
[1740240908449,3.58564,2788.9,2787.9,8.80705871]
[1740240908649,3.58564,2788.9,2788.3,3.58632]
[1740240908976,6.27561561,2789.1,2788.5,3.58608]
[1740240909279,3.5859,2788.7,2788.5,5.22025871]
[1740240909585,1.00440569,2789.1,2788.5,8.80639871]
[1740240909788,0.7991,2789.4,2788.5,5.22025871]
[1740240910080,3.58561,2789.0,2788.5,5.22025871]
[1740240910283,3.58531,2789.2,2788.5,8.80633871]
[1740240910779,0.7778,2789.9,2788.7,0.788]
[1740240910963,3.58427,2790.0,2788.8,14.12025871]
[1740240911289,3.58564,2788.9,2788.8,5.22025871]
[1740240911653,3.58561,2789.0,2788.8,5.22025871]
[1740240911854,3.58501,2789.4,2788.8,5.22025871]
[1740240912061,3.58496,2789.5,2788.8,5.22025871]
[1740240912254,3.58496,2789.5,2788.9,5.22025871]
[1740240912455,3.58469,2789.7,2789.0,6.63228458]
[1740240912655,0.88669992,2790.1,2789.4,0.788]
[1740240912870,3.58474,2789.6,2789.5,5.22025871]
[1740240913969,3.58443,2789.9,2789.5,5.22025871]
[1740240914153,3.58459,2789.8,2789.5,5.22025871]
[1740240914745,3.0,2790.2,2789.5,5.22025871]
[1740240914946,3.58474,2789.6,2789.5,5.22025871]
[1740240915158,3.58409,2790.2,2789.5,8.80501871]
[1740240915487,0.88669992,2791.0,2789.5,8.80501871]
[1740240915488,3.58374,2790.4,2789.6,6.00825871]
[1740240915785,3.58374,2790.4,2789.6,9.59295871]
[1740240915992,3.58392,2790.3,2789.7,7.06955458]
[1740240916487,0.7778,2790.7,2789.7,7.06955458]
[1740240916676,3.58426,2790.0,2789.7,5.22025871]
[1740240916872,3.58448,2789.8,2789.7,5.22025871]
[1740240917078,3.5842,2790.1,2789.7,5.22025871]
[1740240917417,3.58436,2789.9,2789.7,5.22025871]
[1740240917683,3.58378,2790.4,2789.7,10.29565458]
[1740240917887,3.58405,2790.2,2789.8,5.22025871]
[1740240918757,3.58435,2789.9,2789.8,5.22025871]
[1740240922730,3.58564,2788.9,2788.8,0.788]
[1740240923034,3.58564,2788.9,2788.8,5.22025871]
[1740240923331,0.7778,2789.3,2788.8,5.22025871]
[1740240923332,0.7778,2789.6,2788.8,5.74228458]
[1740240923488,3.58564,2788.9,2788.8,5.22025871]
[1740240923701,3.58602,2788.6,2788.5,7.327]
[1740240923902,3.58602,2788.6,2788.5,12.54725871]
[1740240924703,4.16439326,2789.5,2788.5,12.54725871]
[1740240924903,3.58529,2789.2,2788.6,3.58595]
[1740240925109,3.585,2789.4,2788.8,0.8221]
[1740240925308,4.16439326,2789.8,2788.8,6.04235871]
[1740240925546,3.58561,2789.0,2788.8,6.04235871]
[1740240925844,3.58564,2788.9,2788.8,6.04235871]
[1740240926040,3.58564,2788.9,2788.8,5.22025871]
[1740240926264,3.58602,2788.6,2788.5,13.36935871]
[1740240926406,3.58602,2788.6,2788.5,12.54725871]
[1740240927743,3.58554,2789.0,2788.5,13.80198458]
[1740240927744,3.58562,2789.0,2788.5,13.80198458]
[1740240927904,0.297,2789.7,2788.8,0.9]
[1740240928102,0.7551,2789.6,2788.9,0.8221]
[1740240928306,3.5854,2789.1,2788.9,0.8221]
[1740240928506,5.29595992,2790.0,2789.0,5.22025871]
[1740240928738,3.58461,2789.7,2789.1,3.58529]
[1740240928942,1.71169992,2790.0,2789.0,8.80572871]
[1740240928943,3.58454,2789.8,2789.0,8.80572871]
[1740240929179,3.58483,2789.6,2789.0,8.80572871]
[1740240929479,3.58463,2789.7,2789.1,13.78175717]
[1740240929687,3.58456,2789.8,2789.1,6.61101717]
[1740240929840,3.58479,2789.6,2789.1,10.19637717]
[1740240930348,3.58455,2789.8,2789.1,10.19637717]
[1740240930557,3.58475,2789.6,2789.2,0.8302]
[1740240930746,4.1182,2790.3,2789.3,1.10265772]
[1740240930949,7.16944,2789.7,2789.3,1.10265772]
[1740240931143,3.58481,2789.6,2789.3,1.10265772]
[1740240931552,3.58512,2789.3,2789.2,0.8302]
[1740240931802,3.58512,2789.3,2789.2,5.22025871]
[1740240932353,3.58487,2789.6,2789.2,5.22025871]
[1740240932548,7.98559326,2790.1,2789.2,5.27930636]
[1740240932549,3.58448,2789.8,2789.2,5.27930636]
[1740240932784,3.58489,2789.5,2789.2,5.27930636]
[1740240932987,7.16985,2789.5,2789.3,0.52793064]
[1740240933197,3.58489,2789.5,2789.4,0.0571986]
[1740240933377,3.58466,2789.7,2789.4,0.0571986]
[1740240933894,3.8212,2790.1,2789.4,0.0571986]
[1740240933895,7.40537,2790.1,2789.4,0.0571986]
[1740240934096,3.58487,2789.5,2789.4,0.0571986]
[1740240934404,3.58487,2789.5,2789.4,5.4471986]
[1740240934697,3.58371,2790.4,2789.4,6.82211846]
[1740240934859,3.58371,2790.4,2789.4,15.72211846]
[1740240935057,3.58487,2789.5,2789.4,14.3471986]
[1740240935262,3.5847,2789.7,2789.4,5.4471986]
[1740240935807,3.58444,2789.9,2789.4,5.4471986]
[1740240936349,3.58465,2789.7,2789.4,5.4471986]
[1740240936554,7.16822,2790.1,2789.4,5.4471986]
[1740240936714,3.58451,2789.8,2789.5,0.90322486]
[1740240937139,7.16911,2789.8,2789.6,0.05682791]
[1740240937328,3.58451,2789.8,2789.6,0.05682791]
[1740240937725,3.58419,2790.1,2789.6,0.05682791]
[1740240938256,3.58388,2790.3,2789.6,0.05682791]
[1740240938257,3.58388,2790.3,2789.8,3.58448]
[1740240938411,3.58404,2790.2,2789.9,0.897448]
[1740240938612,4.47034992,2790.5,2790.0,0.05649556]
[1740240938953,4.47034992,2790.5,2790.1,8.97401]
[1740240938954,0.88669992,2790.5,2790.1,8.97401]
[1740240939259,3.58347,2790.6,2790.3,0.8302]
[1740240939421,3.58371,2790.4,2790.3,0.8302]
[1740240939614,3.58347,2790.6,2790.3,0.88637822]
[1740240939807,3.58358,2790.5,2790.3,0.88637822]
[1740240940450,3.58358,2790.5,2790.1,4.25432841]
[1740240940645,3.58358,2790.5,2790.4,0.0540888]
[1740240940866,3.58358,2790.5,2790.1,4.25432841]
[1740240941059,3.58358,2790.5,2790.4,0.05371782]
[1740240941232,3.58358,2790.5,2790.1,4.25432841]
[1740240941233,3.58382,2790.4,2790.1,4.25432841]
[1740240941433,3.58397,2790.2,2790.1,4.25432841]
[1740240941656,6.58397,2790.2,2790.1,4.25432841]
[1740240941965,12.11956326,2790.2,2790.1,8.41e-06]
[1740240942622,16.28395652,2790.2,2790.1,8.41e-06]
[1740240942823,12.11956326,2790.2,2790.1,8.41e-06]
[1740240943167,3.58564,2788.9,2788.8,0.9]
[1740240944250,6.58508,2789.4,2788.8,0.9]
[1740240944422,3.58564,2788.9,2788.8,0.9]
[1740240945648,8.54473326,2788.9,2788.8,0.9]
[1740240946160,11.54473326,2788.9,2788.8,0.9]
[1740240946358,12.09473326,2788.9,2788.8,0.9]
[1740240947262,3.58641,2788.3,2788.2,5.39]
[1740240947470,3.58671,2788.1,2787.8,0.3291]
[1740240947622,3.5859,2788.7,2787.8,0.90101]
[1740240947623,3.58598,2788.7,2787.8,0.90101]
[1740240947830,3.58605,2788.6,2787.9,3.58681]
[1740240948165,3.58605,2788.6,2788.1,3.58659]
[1740240948366,6.58581,2788.8,2788.1,3.58659]
[1740240948566,3.58591,2788.7,2788.2,0.05292582]
[1740240948924,3.58605,2788.6,2788.2,0.05292582]
[1740240949569,0.7947,2788.9,2788.2,0.05292582]
[1740240949733,3.58615,2788.5,2788.2,0.05292582]
[1740240949921,0.7947,2788.9,2788.2,0.05292582]
[1740240949922,3.58591,2788.7,2788.2,0.05292582]
[1740240950122,3.58557,2789.0,2788.3,3.58629]
[1740240950368,3.58573,2788.9,2788.4,0.3291]
[1740240950571,3.58623,2788.5,2788.3,0.05437126]
[1740240950754,3.58628,2788.4,2788.1,1.23206822]
[1740240951127,3.58623,2788.5,2788.1,1.23206822]
[1740240951325,3.58638,2788.4,2788.1,0.3291]
[1740240951861,3.58623,2788.5,2788.1,0.3291]
[1740240952261,3.58611,2788.6,2788.1,3.91576]
[1740240952473,3.58605,2788.6,2788.1,3.91576]
[1740240952650,0.7556,2789.2,2788.1,3.91576]
[1740240952651,3.85506006,2788.9,2788.2,3.58642]
[1740240952860,3.0,2788.8,2788.2,3.58642]
[1740240953151,3.58552,2789.0,2788.4,3.58619]
[1740240953353,3.58562,2789.0,2788.4,3.58619]
[1740240953538,3.58574,2788.9,2788.3,3.977962]
[1740240954070,3.58573,2788.9,2788.3,0.391552]
[1740240954268,3.5858,2788.8,2788.3,3.977952]
[1740240954474,3.58573,2788.9,2788.4,4.3427002]
[1740240954628,3.58573,2788.9,2788.4,0.7564402]
[1740240954823,3.58573,2788.9,2788.3,3.977882]
[1740240954824,3.7556,2789.2,2788.1,0.3291]
[1740240955082,3.58632,2788.4,2788.1,0.3291]
[1740240955287,3.58567,2788.9,2788.1,0.3291]
[1740240955464,3.58616,2788.5,2788.1,0.3291]
[1740240955659,3.58597,2788.7,2788.2,3.58647]
[1740240955891,3.0,2788.9,2788.1,1.259688]
[1740240956102,3.5861,2788.6,2788.1,0.3291]
[1740240956502,7.17223,2788.6,2788.1,0.3291]
[1740240956679,3.58617,2788.5,2788.1,0.3291]
[1740240956875,0.7556,2789.2,2788.2,5.39]
[1740240957190,3.58612,2788.6,2788.2,5.39]
[1740240957380,7.17223,2788.6,2788.3,0.57191]
[1740240957577,7.17223,2788.6,2788.2,5.39]
[1740240958006,3.58619,2788.5,2788.2,5.39]
[1740240958505,3.58611,2788.6,2788.2,5.39]
[1740240959420,3.58612,2788.6,2788.2,5.39]
[1740240959806,3.58626,2788.5,2788.2,5.39]
[1740240961197,3.58591,2788.7,2788.2,8.97651]
[1740240961395,3.58584,2788.8,2788.2,11.155692]
[1740240961610,3.58594,2788.7,2788.2,11.155692]
[1740240961905,3.58584,2788.8,2788.2,14.742142]
[1740240962308,3.58613,2788.6,2788.2,7.569232]
[1740240962714,7.17174,2788.8,2788.3,0.05568028]
[1740240962893,3.58586,2788.8,2788.2,11.155682]
[1740240963096,3.58606,2788.6,2788.4,0.05559711]
[1740240963283,3.58606,2788.6,2788.2,5.39]
[1740240963483,3.58606,2788.6,2788.5,0.05551394]
[1740240963683,3.58606,2788.6,2788.2,5.39]
[1740240963928,3.58602,2788.6,2788.5,0.05551394]
[1740240964076,3.58602,2788.6,2788.2,5.39]
[1740240964281,3.58602,2788.6,2788.5,0.05551394]
[1740240964509,3.58591,2788.7,2788.2,10.0482536]
[1740240964708,3.58591,2788.7,2788.5,0.05551394]
[1740240964895,3.58591,2788.7,2788.2,8.97648]
[1740240965191,3.58591,2788.7,2788.6,0.05543078]
[1740240965419,3.58598,2788.7,2788.2,5.39]
[1740240965620,3.58603,2788.6,2788.2,5.39]
[1740240965994,3.58583,2788.8,2788.2,8.97643]
[1740240966363,3.0,2789.4,2788.2,7.23661224]
[1740240966484,4.98599326,2789.5,2788.3,8.97636]
[1740240966926,3.58566,2788.9,2788.4,3.58622]
[1740240967220,3.58566,2788.9,2788.3,8.97636]
[1740240967427,3.58603,2788.6,2788.3,5.39]
[1740240967627,3.58616,2788.5,2788.3,5.39]
[1740240967793,3.58602,2788.7,2788.3,5.39]
[1740240967988,3.58613,2788.6,2788.3,5.39]
[1740240969835,4.40728,2788.9,2788.3,5.39]
[1740240970139,0.27568318,2788.9,2788.5,3.58612]
[1740240970451,4.40907,2789.5,2788.7,0.3735]
[1740240970601,0.26264203,2789.6,2788.9,3.58552]
[1740240970806,3.58493,2789.5,2788.8,8.97576]
[1740240971142,0.26264203,2789.6,2789.0,3.5855]
[1740240971358,0.8242,2789.8,2789.3,3.5851]
[1740240971517,0.8242,2790.1,2789.3,3.95854]
[1740240971721,3.58458,2789.8,2789.3,3.95854]
[1740240971927,3.85150662,2789.8,2789.3,3.95854]
[1740240972119,0.26692662,2789.8,2789.3,0.3735]
[1740240972319,6.90054461,2790.2,2789.3,0.94985]
[1740240972623,3.58419,2790.1,2789.5,3.58486]
[1740240972815,3.27398575,2790.1,2789.7,3.58451]
[1740240973015,0.8242,2790.4,2789.7,3.58451]
[1740240973215,3.58387,2790.3,2789.7,3.58451]
[1740240973442,3.5841,2790.1,2789.7,5.39]
[1740240973643,3.5841,2790.1,2789.7,6.64595]
[1740240973840,3.58387,2790.3,2789.8,3.58446]
[1740240974248,3.58392,2790.3,2789.9,0.3735]
[1740240975102,3.58398,2790.2,2789.9,0.3735]
[1740240975755,3.58392,2790.3,2789.9,0.3735]
[1740240976049,0.8242,2790.1,2789.7,1.25595]
[1740240976250,4.15129344,2789.9,2789.1,0.3735]
[1740240976548,0.8242,2790.1,2789.1,0.3735]